fUSD/lending_fUSD_20240119
["ID","MTS","AMOUNT","RATE_DAILY","PERIOD"]
[312155036,1705671042666,-500.0,0.00021917,2]
[312155038,1705671042676,-500.0,0.00021917,2]
[312155040,1705671042686,-500.0,0.00021917,2]
[312155042,1705671042696,-323.45045551,0.00021917,2]
[312155043,1705671042706,-372.35593138,0.00021917,2]
[312155046,1705671042721,-735.70406862,0.00021917,2]
[312155048,1705671042732,-500.0,0.00021917,2]
[312155050,1705671042742,-892.78,0.00021917,2]
[312155052,1705671042752,-520.28,0.00021917,2]
[312155054,1705671042762,-500.0,0.00021917,2]
[312155056,1705671042773,-500.0,0.00021917,2]
[312155058,1705671042783,-500.59,0.00021917,2]
[312155060,1705671042793,-519.92,0.00021917,2]
[312155062,1705671042803,-500.0,0.00021917,2]
[312155064,1705671042813,-500.0,0.00021917,2]
[312155066,1705671042823,-914.68,0.00021917,2]
[312155068,1705671042833,-646.8,0.00021917,2]
[312155070,1705671042844,-500.0,0.00021917,2]
[312155072,1705671042854,-662.64,0.00021917,2]
[312155074,1705671042864,-500.0,0.00021917,2]
[312155076,1705671042874,-500.0,0.00021917,2]
[312155078,1705671042885,-981.99,0.00021917,2]
[312155080,1705671042896,-500.0,0.00021917,2]
[312155082,1705671042908,-572.65,0.00021917,2]
[312155084,1705671042918,-988.16,0.00021917,2]
[312155086,1705671042928,-564.93,0.00021917,2]
[312155087,1705671042938,-500.0,0.00021917,2]
[312155090,1705671042948,-256.20768783,0.00021917,2]
[312155092,1705671042959,-500.0,0.00021917,2]
[312155094,1705671042969,-500.0,0.00021917,2]
[312155096,1705671042980,-631.58,0.00021917,2]
[312155098,1705671042991,-500.0,0.00021917,2]
[312155100,1705671043002,-500.0,0.00021917,2]
[312155102,1705671043012,-500.0,0.00021917,2]
[312155103,1705671043021,-959.75,0.00021917,2]
[312155106,1705671043032,-500.0,0.00021917,2]
[312155108,1705671043044,-976.03,0.00021917,2]
[312155110,1705671043054,-500.0,0.00021917,2]
[312155112,1705671043063,-901.98,0.00021917,2]
[312155114,1705671043074,-863.88,0.00021917,2]
[312155116,1705671043084,-500.0,0.00021917,2]
[312155118,1705671043094,-1508.75,0.00021917,2]
[312155120,1705671043104,-500.0,0.00021917,2]
[312155122,1705671043115,-500.0,0.00021917,2]
[312155124,1705671043124,-748.55,0.00021917,2]
[312155126,1705671043135,-500.0,0.00021917,2]
[312155128,1705671043146,-500.0,0.00021917,2]
[312155130,1705671043156,-500.0,0.00021917,2]
[312155132,1705671043166,-500.0,0.00021917,2]
[312155134,1705671043176,-715.87,0.00021917,2]
[312155136,1705671043186,-500.0,0.00021917,2]
[312155138,1705671043195,-500.0,0.00021917,2]
[312155169,1705671043596,-500.0,0.00021917,2]
[312155172,1705671043607,-527.09,0.00021917,2]
[312155174,1705671043618,-500.0,0.00021917,2]
[312155176,1705671043628,-749.67,0.00021917,2]
[312155178,1705671043638,-500.0,0.00021917,2]
[312155180,1705671043647,-882.0,0.00021917,2]
[312155182,1705671043657,-500.0,0.00021917,2]
[312155184,1705671043667,-877.59,0.00021917,2]
[312155186,1705671043677,-500.0,0.00021917,2]
[312155188,1705671043687,-818.67,0.00021917,2]
[312155190,1705671043697,-1437.07,0.00021917,2]
[312155192,1705671043707,-550.81,0.00021917,2]
[312155194,1705671043717,-810.45,0.00021917,2]
[312155196,1705671043727,-500.0,0.00021917,2]
[312155198,1705671043737,-500.0,0.00021917,2]
[312155200,1705671043747,-1178.88,0.00021917,2]
[312155202,1705671043758,-791.29,0.00021917,2]
[312155204,1705671043769,-500.0,0.00021917,2]
[312155206,1705671043780,-500.0,0.00021917,2]
[312155208,1705671043790,-866.32,0.00021917,2]
[312155210,1705671043800,-500.0,0.00021917,2]
[312155212,1705671043810,-500.0,0.00021917,2]
[312155214,1705671043819,-737.98,0.00021917,2]
[312155216,1705671043830,-500.0,0.00021917,2]
[312155218,1705671043841,-840.32,0.00021917,2]
[312155220,1705671043850,-500.0,0.00021917,2]
[312155222,1705671043860,-975.29,0.00021917,2]
[312155224,1705671043870,-500.0,0.00021917,2]
[312155226,1705671043880,-500.0,0.00021917,2]
[312155228,1705671043890,-1752.26,0.00021917,2]
[312155230,1705671043900,-937.86,0.00021917,2]
[312155232,1705671043910,-2318.76,0.00021917,2]
[312155234,1705671043921,-943.71,0.00021917,2]
[312155236,1705671043933,-500.0,0.00021917,2]
[312155238,1705671043943,-1440.79,0.00021917,2]
[312155240,1705671043953,-500.0,0.00021917,2]
[312155242,1705671043963,-972.64612099,0.00021917,2]
[312155278,1705671044536,-240.52387901,0.00021917,2]
[312155280,1705671044547,-500.0,0.00021917,2]
[312155282,1705671044557,-97.35927529,0.00021917,2]
[312155284,1705671044569,-402.64072471,0.00021917,2]
[312155285,1705671044579,-123.82196239,0.00021917,2]
[312155287,1705671044592,-376.17803761,0.00021917,2]
[312155288,1705671044602,-2778.4,0.00021917,2]
[312155289,1705671044612,-579.78,0.00021917,2]
[312155290,1705671044622,-292.34088962,0.00021917,2]
[312155291,1705671044666,-259.56812837,0.00021917,2]
[312155292,1705671044678,-442.58098201,0.00021917,2]
[312155293,1705671044688,-790.63,0.00021917,2]
[312155294,1705671044698,-500.0,0.00021917,2]
[312155295,1705671044707,-686.74,0.00021917,2]
[312155296,1705671044718,-700.52,0.00021917,2]
[312155297,1705671044728,-500.0,0.00021917,2]
[312155298,1705671044739,-500.0,0.00021917,2]
[312155299,1705671044749,-500.0,0.00021917,2]
[312155300,1705671044759,-500.0,0.00021917,2]
[312155301,1705671044769,-500.0,0.00021917,2]
[312155302,1705671044779,-869.62,0.00021917,2]
[312155303,1705671044789,-354.35903842,0.00021917,2]
[312155311,1705671045443,-145.64096158,0.00021917,2]
[312155312,1705671045453,-703.1,0.00021917,2]
[312155313,1705671045465,-382.98147893,0.00021917,2]
[312155314,1705671045478,-117.01852107,0.00021917,2]
[312155315,1705671045487,-382.98147893,0.00021917,2]
[312155326,1705671046049,-500.0,0.00021917,2]
[312155327,1705671046059,-1143.7,0.00021917,2]
[312155328,1705671046069,-500.0,0.00021917,2]
[312155329,1705671046078,-718.84,0.00021917,2]
[312155330,1705671046087,-500.0,0.00021917,2]
[312155331,1705671046097,-511.72,0.00021917,2]
[312155332,1705671046107,-638.37,0.00021917,2]
[312155333,1705671046116,-500.0,0.00021917,2]
[312155334,1705671046126,-1147.21,0.00021917,2]
[312155335,1705671046136,-500.0,0.00021917,2]
[312155336,1705671046145,-1108.71,0.00021917,2]
[312155337,1705671046155,-500.0,0.00021917,2]
[312155338,1705671046164,-555.38,0.00021917,2]
[312155339,1705671046173,-626.57,0.00021917,2]
[312155340,1705671046182,-3018.81,0.00021917,2]
[312155341,1705671046192,-500.0,0.00021917,2]
[312155342,1705671046202,-505.22,0.00021917,2]
[312155343,1705671046212,-842.33,0.00021917,2]
[312155345,1705671046221,-538.74,0.00021917,2]
[312155346,1705671046231,-1017.46,0.00021917,2]
[312155347,1705671046241,-1872.95,0.00021917,2]
[312155348,1705671046250,-633.85,0.00021917,2]
[312155349,1705671046260,-500.0,0.00021917,2]
[312155350,1705671046270,-500.0,0.00021917,2]
[312155351,1705671046280,-1325.44,0.00021917,5]
[312155352,1705671046290,-500.0,0.00021917,2]
[312155353,1705671046300,-517.53761923,0.00021917,2]
[312155354,1705671046309,-500.0,0.00021917,2]
[312155355,1705671046319,-898.23,0.00021917,2]
[312155356,1705671046328,-500.0,0.00021917,2]
[312155357,1705671046338,-500.0,0.00021917,2]
[312155358,1705671046348,-543.13,0.00021917,2]
[312155359,1705671046360,-500.0,0.00021917,2]
[312155360,1705671046370,-568.51,0.00021917,2]
[312155361,1705671046380,-508.18,0.00021917,2]
[312155362,1705671046390,-985.82,0.00021917,2]
[312155363,1705671046401,-1879.51,0.00021917,2]
[312155364,1705671046411,-1666.87,0.00021917,2]
[312155365,1705671046421,-500.0,0.00021917,2]
[312155366,1705671046431,-1117.79,0.00021917,2]
[312155367,1705671046441,-2387.64,0.00021917,2]
[312155368,1705671046451,-500.0,0.00021917,2]
[312155369,1705671046461,-500.0,0.00021917,2]
[312155370,1705671046471,-859.53,0.00021917,2]
[312155371,1705671046481,-500.0,0.00021917,2]
[312155372,1705671046490,-500.0,0.00021917,2]
[312155373,1705671046500,-500.0,0.00021917,2]
[312155374,1705671046510,-3049.24,0.00021917,2]
[312155375,1705671046520,-1648.7,0.00021917,2]
[312155376,1705671046530,-500.0,0.00021917,2]
[312155377,1705671046540,-500.0,0.00021917,2]
[312155378,1705671046550,-500.0,0.00021917,2]
[312155379,1705671046561,-8118.23,0.00021917,2]
[312155380,1705671046571,-942.68,0.00021917,2]
[312155381,1705671046581,-844.2,0.00021917,2]
[312155382,1705671046591,-648.44,0.00021917,2]
[312155383,1705671046600,-500.0,0.00021917,2]
[312155384,1705671046611,-867.54,0.00021917,2]
[312155385,1705671046622,-500.0,0.00021917,2]
[312155386,1705671046631,-500.0,0.00021917,2]
[312155387,1705671046641,-500.0,0.00021917,2]
[312155388,1705671046651,-500.0,0.00021917,2]
[312155389,1705671046661,-2305.21,0.00021917,2]
[312155390,1705671046671,-500.0,0.00021917,2]
[312155391,1705671046681,-500.0,0.00021917,2]
[312155392,1705671046691,-6189.36,0.00021917,2]
[312155393,1705671046701,-500.0,0.00021917,2]
[312155394,1705671046712,-500.0,0.00021917,2]
[312155395,1705671046724,-10186.29,0.00021917,2]
[312155396,1705671046734,-570.62,0.00021917,2]
[312155397,1705671046744,-78.28795525,0.00021917,2]
[312155398,1705671046777,-421.71204475,0.00021917,2]
[312155399,1705671046788,-612.99095525,0.00021917,2]
[312155400,1705671047461,-40.63904475,0.00021917,2]
[312155401,1705671047471,-223.72,0.00021917,2]
[312155402,1705671047482,-2177.98,0.00021917,2]
[312155403,1705671047492,-553.60455527,0.00021917,2]
[312155404,1705671047525,-1044.6408,0.00021917,2]
[312155405,1705671048308,-547.32464473,0.00021917,2]
[312155406,1705671048317,-787.75,0.00021917,2]
[312155407,1705671048327,-253.683917,0.00021917,2]
[312155408,1705671048337,-904.84143827,0.00021917,2]
[312155409,1705671205270,262.91,0.00019099,2]
[312155411,1705671574083,204.0,0.00018359,2]
[312155412,1705671640003,249.76,0.00018783,2]
[312155413,1705671665155,150.0,0.0003,120]
[312155414,1705671733444,900.0,0.0003,120]
[312155416,1705671996677,369.26341572,0.00017452,2]
[312155420,1705672072160,244.77,0.00018661,2]
[312155421,1705672214714,300.0,0.00017452,2]
[312155436,1705672232044,-717.65074304,0.00019899,2]
[312155437,1705672232098,-1761.33017096,0.00019899,2]
[312155438,1705672232110,-155.0,0.00019999,2]
[312155439,1705672232120,-168.93633082,0.0002,2]
[312155440,1705672232130,-431.76,0.00020001,2]
[312155441,1705672232141,-250.0,0.0002046,2]
[312155442,1705672232150,-4578.0,0.00020507,2]
[312155443,1705672232161,-183.35,0.00020515,2]
[312155444,1705672232171,-2000.0,0.00020548,2]
[312155445,1705672232182,-421.16,0.00020572,2]
[312155446,1705672232192,-159.14,0.00020624,2]
[312155447,1705672232202,-568.24,0.00020642,2]
[312155448,1705672232212,-157.38,0.00020675,2]
[312155449,1705672232223,-155.88909857,0.0002068,2]
[312155451,1705672232234,-204.0,0.00020829,2]
[312155453,1705672232244,-499.99,0.00020829,2]
[312155455,1705672232254,-159.14,0.00020839,2]
[312155456,1705672232264,-150.0,0.00020877,2]
[312155457,1705672232274,-244.77,0.00020924,2]
[312155458,1705672232284,-177.58,0.00020938,2]
[312155459,1705672232294,-624.45425003,0.00020942,2]
[312155460,1705672232304,-610.5,0.00020942,2]
[312155461,1705672232315,-159.14,0.00021053,2]
[312155462,1705672232325,-180.98,0.00021151,2]
[312155463,1705672232335,-159.32,0.00021193,2]
[312155464,1705672232346,-268.0,0.00021259,2]
[312155465,1705672232355,-3507.01823036,0.0002126,2]
[312155466,1705672232365,-159.14,0.00021268,2]
[312155467,1705672232375,-155.88909856,0.00021386,2]
[312155468,1705672232385,-157.38,0.00021453,2]
[312155469,1705672232395,-150.0,0.00021464,2]
[312155470,1705672232405,-150.54339926,0.00021464,2]
[312155471,1705672232415,-235.89308219,0.00021464,2]
[312155472,1705672232425,-159.14,0.00021483,2]
[312155473,1705672232435,-421.16,0.0002155,2]
[312155474,1705672232445,-762.63989464,0.00021617,2]
[312155475,1705672232455,-163.11,0.00021644,2]
[312155476,1705672232465,-152.76590548,0.00021667,2]
[312155477,1705672232475,-159.14,0.00021698,2]
[312155478,1705672232485,-2115.3493,0.00021717,2]
[312155479,1705672232495,-318.9706,0.00021717,2]
[312155480,1705672232505,-1933.4344,0.00021717,2]
[312155481,1705672232514,-165.39,0.00021781,2]
[312155482,1705672232524,-157.22990937,0.00021815,2]
[312155483,1705672232534,-266.47788631,0.00021815,2]
[312155484,1705672232544,-197.40544785,0.00021815,2]
[312155485,1705672232554,-203.40048379,0.00021815,2]
[312155486,1705672232566,-1027.46826993,0.00021815,2]
[312155487,1705672232576,-400.49631335,0.00021815,2]
[312155488,1705672232586,-196.91428267,0.00021815,2]
[312155489,1705672232596,-6972.1954,0.00021816,2]
[312155490,1705672232606,-2500.0,0.00021816,2]
[312155491,1705672232616,-1000.0,0.00021817,2]
[312155492,1705672232626,-5000.0,0.00021817,2]
[312155493,1705672232635,-55555.0,0.00021817,2]
[312155494,1705672232648,-17522.86215697,0.00021817,2]
[312155495,1705672232658,-213.75031147,0.00021817,2]
[312155496,1705672232668,-220.82773707,0.00021817,2]
[312155497,1705672232679,-209.66429938,0.00021817,2]
[312155498,1705672232689,-1406.89336981,0.0002189,3]
[312155499,1705672232702,-408.64,0.0002189,2]
[312155500,1705672232711,-416.7,0.0002189,2]
[312155501,1705672232721,-314.65,0.0002189,2]
[312155502,1705672232736,-150.0,0.0002189,2]
[312155503,1705672232746,-250.0,0.000219,2]
[312155504,1705672232755,-246.50580772,0.00021914,2]
[312155505,1705672232765,-263.80043776,0.00021915,2]
[312155506,1705672232775,-1546.48023014,0.00021915,2]
[312155507,1705672232785,-177.46737757,0.00021915,2]
[312155508,1705672232795,-360.90064478,0.00021915,2]
[312155509,1705672232805,-9320.06870109,0.00021915,2]
[312155510,1705672232817,-500.0,0.00021915,2]
[312155511,1705672232828,-985.47024403,0.00021916,2]
[312155512,1705672232838,-97163.5128357,0.00021916,2]
[312155513,1705672232852,-206075.4465167,0.00021916,2]
[312155514,1705672232865,-500.7777886,0.00021916,2]
[312155515,1705672232878,-900.0,0.00021916,2]
[312155516,1705672232891,-439.62247958,0.00021916,2]
[312155517,1705672232903,-543.83,0.00021916,2]
[312155536,1705672239528,-3076.21860504,0.00021916,2]
[312155537,1705672239542,-3197.4596895,0.00021916,2]
[312155538,1705672239582,-31708.97869465,0.00021916,2]
[312155540,1705672239702,-1997.2320567,0.00021916,2]
[312155542,1705672239758,-3290.64555306,0.00021916,2]
[312155543,1705672239818,-430.0,0.00021916,2]
[312155544,1705672239831,-829.099827,0.00021916,2]
[312155545,1705672239853,-112368.19265976,0.00021916,2]
[312155546,1705672239876,-6126.6705827,0.00021916,2]
[312155608,1705672240544,-738.19442289,0.00021916,2]
[312155610,1705672240556,-22003.63180085,0.00021916,2]
[312155612,1705672240571,-560.0,0.00021916,2]
[312155619,1705672240621,-1036.368,0.00021916,2]
[312155706,1705672241485,-270.1999996,0.00021916,2]
[312155709,1705672241498,-404.9391978,0.00021916,2]
[312155711,1705672241510,-1322.46730531,0.00021916,2]
[312155714,1705672241527,-2462.2218025,0.00021916,2]
[312155845,1705672242882,-155.0,0.00021915,2]
[312155849,1705672242893,-838.56644484,0.00021916,2]
[312155856,1705672242947,-396.95172208,0.00021916,2]
[312155858,1705672242959,-2651.31362016,0.00021916,2]
[312155861,1705672242971,-391.25088395,0.00021916,2]
[312155871,1705672243073,-1102.24395468,0.00021916,2]
[312155878,1705672243133,-2979.27600002,0.00021916,2]
[312155881,1705672243146,-2.07577556,0.00021916,2]
[312155883,1705672243156,-504.04819759,0.00021917,2]
[312155885,1705672243166,-172.83620875,0.00021917,2]
[312156071,1705672245133,-3293.22606536,0.00021917,2]
[312156073,1705672245143,-500.0,0.00021917,2]
[312156075,1705672245153,-102.35128184,0.00021917,2]
[312156078,1705672245167,-610.54472259,0.00021917,2]
[312156080,1705672245180,-106.16399557,0.00021917,2]
[312156082,1705672245191,-500.0,0.00021917,2]
[312156084,1705672245201,-83.76719699,0.00021917,2]
[312156086,1705672245214,-416.23280301,0.00021917,2]
[312156088,1705672245224,-500.0,0.00021917,2]
[312156090,1705672245234,-422.44762823,0.00021917,2]
[312156092,1705672245245,-500.0,0.00021917,2]
[312156095,1705672245257,-500.0,0.00021917,2]
[312156097,1705672245267,-500.0,0.00021917,2]
[312156099,1705672245278,-500.0,0.00021917,2]
[312156101,1705672245288,-356.71956876,0.00021917,2]
[312156103,1705672245302,-143.28043124,0.00021917,2]
[312156105,1705672245312,-500.0,0.00021917,2]
[312156107,1705672245321,-188.20407225,0.00021917,2]
[312156110,1705672245345,-311.79592775,0.00021917,2]
[312156112,1705672245356,-500.0,0.00021917,2]
[312156114,1705672245366,-65.43466009,0.00021917,2]
[312156117,1705672245379,-434.56533991,0.00021917,2]
[312156119,1705672245389,-500.0,0.00021917,2]
[312156121,1705672245399,-583.71452021,0.00021917,2]
[312156123,1705672245409,-500.0,0.00021917,2]
[312156125,1705672245419,-500.0,0.00021917,2]
[312156127,1705672245430,-500.0,0.00021917,2]
[312156129,1705672245440,-500.0,0.00021917,2]
[312156131,1705672245450,-500.0,0.00021917,2]
[312156133,1705672245460,-500.0,0.00021917,2]
[312156135,1705672245470,-146.06282839,0.00021917,2]
[312156137,1705672245483,-353.93717161,0.00021917,2]
[312156139,1705672245492,-500.0,0.00021917,2]
[312156141,1705672245501,-500.0,0.00021917,2]
[312156143,1705672245511,-500.0,0.00021917,2]
[312156145,1705672245520,-922.98,0.00021917,2]
[312156146,1705672245530,-500.0,0.00021917,2]
[312156148,1705672245541,-500.0,0.00021917,2]
[312156150,1705672245550,-500.0,0.00021917,2]
[312156152,1705672245559,-500.0,0.00021917,2]
[312156154,1705672245569,-500.0,0.00021917,2]
[312156156,1705672245580,-500.0,0.00021917,2]
[312156158,1705672245589,-500.0,0.00021917,2]
[312156159,1705672245599,-500.0,0.00021917,2]
[312156161,1705672245609,-254.87137708,0.00021917,2]
[312156163,1705672245618,-432.47293072,0.00021917,2]
[312156223,1705672246049,-67.52706928,0.00021917,2]
[312156225,1705672246059,-500.0,0.00021917,2]
[312156227,1705672246069,-500.0,0.00021917,2]
[312156228,1705672246079,-500.0,0.00021917,2]
[312156231,1705672246089,-500.0,0.00021917,2]
[312156232,1705672246100,-500.0,0.00021917,2]
[312156234,1705672246110,-500.0,0.00021917,2]
[312156236,1705672246120,-500.0,0.00021917,2]
[312156238,1705672246131,-500.0,0.00021917,2]
[312156240,1705672246141,-500.0,0.00021917,2]
[312156242,1705672246151,-500.0,0.00021917,2]
[312156244,1705672246161,-500.0,0.00021917,2]
[312156246,1705672246170,-500.0,0.00021917,2]
[312156248,1705672246180,-500.0,0.00021917,2]
[312156250,1705672246190,-500.0,0.00021917,2]
[312156252,1705672246200,-855.58,0.00021917,2]
[312156254,1705672246210,-500.0,0.00021917,2]
[312156256,1705672246219,-500.0,0.00021917,2]
[312156258,1705672246228,-250.25842671,0.00021917,2]
[312156260,1705672246242,-249.74157329,0.00021917,2]
[312156262,1705672246253,-500.0,0.00021917,2]
[312156264,1705672246263,-500.0,0.00021917,2]
[312156266,1705672246273,-500.0,0.00021917,2]
[312156268,1705672246283,-500.0,0.00021917,2]
[312156270,1705672246292,-249.42814016,0.00021917,2]
[312156274,1705672246323,-250.57185984,0.00021917,2]
[312156276,1705672246333,-500.0,0.00021917,2]
[312156278,1705672246343,-500.0,0.00021917,2]
[312156280,1705672246354,-500.0,0.00021917,2]
[312156282,1705672246364,-500.0,0.00021917,2]
[312156284,1705672246374,-500.0,0.00021917,2]
[312156286,1705672246383,-500.0,0.00021917,2]
[312156288,1705672246393,-500.0,0.00021917,2]
[312156290,1705672246404,-500.0,0.00021917,2]
[312156293,1705672246413,-320.70575919,0.00021917,2]
[312156296,1705672246426,-179.29424081,0.00021917,2]
[312156300,1705672246436,-344.99693789,0.00021917,2]
[312156304,1705672246458,-155.00306211,0.00021917,2]
[312156305,1705672246467,-500.0,0.00021917,2]
[312156306,1705672246477,-439.46397317,0.00021917,2]
[312156307,1705672246487,-500.0,0.00021917,2]
[312156308,1705672246497,-500.0,0.00021917,2]
[312156309,1705672246507,-934.65,0.00021917,2]
[312156310,1705672246518,-500.0,0.00021917,2]
[312156311,1705672246528,-399.23086415,0.00021917,2]
[312156312,1705672246538,-669.73,0.00021917,2]
[312156313,1705672246549,-500.0,0.00021917,2]
[312156314,1705672246559,-500.0,0.00021917,2]
[312156315,1705672246570,-500.0,0.00021917,2]
[312156316,1705672246580,-500.0,0.00021917,2]
[312156317,1705672246591,-626.1,0.00021917,2]
[312156318,1705672246601,-1270.37,0.00021917,2]
[312156319,1705672246610,-500.0,0.00021917,2]
[312156320,1705672246620,-500.0,0.00021917,2]
[312156321,1705672246630,-500.0,0.00021917,2]
[312156323,1705672246640,-500.0,0.00021917,2]
[312156325,1705672246654,-522.33,0.00021917,2]
[312156327,1705672246664,-500.0,0.00021917,2]
[312156328,1705672246680,-500.0,0.00021917,2]
[312156329,1705672246689,-500.0,0.00021917,2]
[312156330,1705672246699,-905.54,0.00021917,2]
[312156331,1705672246709,-500.0,0.00021917,2]
[312156333,1705672246720,-500.0,0.00021917,2]
[312156335,1705672246729,-203.8752513,0.00021917,2]
[312156337,1705672246738,-516.29,0.00021917,2]
[312156339,1705672246748,-527.86,0.00021917,2]
[312156341,1705672246759,-500.0,0.00021917,2]
[312156342,1705672246769,-739.27,0.00021917,2]
[312156343,1705672246779,-500.0,0.00021917,2]
[312156344,1705672246790,-500.0,0.00021917,2]
[312156345,1705672246800,-520.5,0.00021917,2]
[312156346,1705672246809,-500.0,0.00021917,2]
[312156347,1705672246818,-500.0,0.00021917,2]
[312156348,1705672246829,-500.0,0.00021917,2]
[312156349,1705672246838,-500.0,0.00021917,2]
[312156350,1705672246847,-500.0,0.00021917,2]
[312156351,1705672246857,-500.0,0.00021917,2]
[312156352,1705672246868,-500.0,0.00021917,2]
[312156353,1705672246878,-500.0,0.00021917,2]
[312156354,1705672246889,-500.0,0.00021917,2]
[312156355,1705672246898,-860.8,0.00021917,2]
[312156356,1705672246908,-276.95781385,0.00021917,2]
[312156357,1705672246919,-373.64857959,0.00021917,2]
[312156358,1705672246928,-500.0,0.00021917,2]
[312156359,1705672246938,-500.0,0.00021917,2]
[312156360,1705672246948,-500.0,0.00021917,2]
[312156361,1705672246958,-790.28,0.00021917,2]
[312156362,1705672246968,-500.0,0.00021917,2]
[312156363,1705672246977,-563.59,0.00021917,2]
[312156364,1705672246987,-500.0,0.00021917,2]
[312156365,1705672246997,-500.0,0.00021917,2]
[312156366,1705672247008,-904.39,0.00021917,2]
[312156367,1705672247019,-500.0,0.00021917,2]
[312156368,1705672247029,-500.0,0.00021917,2]
[312156369,1705672247039,-736.81,0.00021917,2]
[312156370,1705672247049,-500.0,0.00021917,2]
[312156371,1705672247059,-500.0,0.00021917,2]
[312156372,1705672247069,-874.73,0.00021917,2]
[312156373,1705672247080,-500.0,0.00021917,2]
[312156374,1705672247090,-500.0,0.00021917,2]
[312156375,1705672247101,-500.0,0.00021917,2]
[312156376,1705672247111,-835.45,0.00021917,2]
[312156377,1705672247121,-500.0,0.00021917,2]
[312156378,1705672247131,-527.0740764,0.00021917,2]
[312156379,1705672247141,-500.0,0.00021917,2]
[312156380,1705672247151,-681.72,0.00021917,2]
[312156381,1705672247162,-500.0,0.00021917,2]
[312156382,1705672247172,-500.0,0.00021917,2]
[312156383,1705672247183,-500.0,0.00021917,2]
[312156384,1705672247194,-500.0,0.00021917,2]
[312156385,1705672247204,-500.0,0.00021917,2]
[312156386,1705672247216,-560.34,0.00021917,2]
[312156387,1705672247226,-500.0,0.00021917,2]
[312156388,1705672247237,-500.34,0.00021917,2]
[312156389,1705672247247,-500.0,0.00021917,2]
[312156390,1705672247257,-500.0,0.00021917,2]
[312156391,1705672247267,-500.0,0.00021917,2]
[312156392,1705672247277,-581.59,0.00021917,2]
[312156393,1705672247287,-500.0,0.00021917,2]
[312156394,1705672247298,-500.0,0.00021917,2]
[312156395,1705672247308,-674.15,0.00021917,2]
[312156396,1705672247319,-532.24,0.00021917,2]
[312156397,1705672247329,-500.0,0.00021917,2]
[312156398,1705672247339,-500.0,0.00021917,2]
[312156399,1705672247349,-500.0,0.00021917,2]
[312156400,1705672247359,-500.0,0.00021917,2]
[312156401,1705672247369,-500.0,0.00021917,2]
[312156402,1705672247379,-603.03,0.00021917,2]
[312156403,1705672247388,-500.0,0.00021917,2]
[312156404,1705672247399,-500.0,0.00021917,2]
[312156405,1705672247408,-500.0,0.00021917,2]
[312156406,1705672247418,-500.0,0.00021917,2]
[312156407,1705672247428,-500.0,0.00021917,2]
[312156408,1705672247438,-776.34,0.00021917,2]
[312156409,1705672247448,-544.52,0.00021917,2]
[312156410,1705672247458,-500.0,0.00021917,2]
[312156411,1705672247468,-500.0,0.00021917,2]
[312156412,1705672247478,-500.0,0.00021917,2]
[312156413,1705672247488,-949.54,0.00021917,2]
[312156414,1705672247498,-811.45,0.00021917,2]
[312156415,1705672247508,-500.0,0.00021917,2]
[312156416,1705672247518,-258.19660531,0.00021917,2]